[Event "Championnat d'Europe de Blitz"]
[Date "2024.12.09"]
[White "Kilic, Eray"]
[Black "Sirigos, Nikolaos"]
[WhiteElo "2459"]
[BlackElo "2044"]
[Round "6.48"]
[Result "1-0"]
[TimeControl "180+2"]

1. e4 {[%emt 00:00:01] [%clk 00:03:02]} e5 {[%emt 00:00:06] [%clk 00:02:59]} 2.
Nf3 {[%emt 00:00:02] [%clk 00:03:01]} d6 {[%emt 00:00:02] [%clk 00:03:00]} 3. d4
{[%emt 00:00:01] [%clk 00:03:01]} exd4 {[%emt 00:00:02] [%clk 00:03:00]} 4. Nxd4
{[%emt 00:00:01] [%clk 00:03:02]} Nf6 {[%emt 00:00:01] [%clk 00:03:02]} 5. Nc3
{[%emt 00:00:01] [%clk 00:03:03]} Be7 {[%clk 00:03:03]} 6. Bf4 {[%emt 00:00:01]
[%clk 00:03:04]} O-O {[%emt 00:00:03] [%clk 00:03:02]} 7. Qd2 {[%clk 00:03:05]}
Nc6 {[%emt 00:00:02] [%clk 00:03:03]} 8. O-O-O {[%emt 00:00:03] [%clk 00:03:03]}
Nxd4 {[%emt 00:00:06] [%clk 00:02:59]} 9. Qxd4 {[%emt 00:00:02] [%clk 00:03:03]}
Ng4 {[%clk 00:03:00]} 10. Nd5 {[%emt 00:00:12] [%clk 00:02:53]} Bg5 {[%emt
00:00:06] [%clk 00:02:56]} 11. Bxg5 {[%emt 00:00:07] [%clk 00:02:49]} Qxg5+
{[%emt 00:00:01] [%clk 00:02:56]} 12. f4 {[%clk 00:02:49]} Qd8 {[%emt 00:00:06]
[%clk 00:02:53]} 13. h3 {[%emt 00:00:15] [%clk 00:02:37]} Nf6 {[%emt 00:00:01]
[%clk 00:02:53]} 14. Nxf6+ {[%emt 00:00:05] [%clk 00:02:34]} Qxf6 {[%emt
00:00:02] [%clk 00:02:54]} 15. Qxf6 {[%emt 00:00:05] [%clk 00:02:30]} gxf6
{[%emt 00:00:01] [%clk 00:02:55]} 16. Bd3 {[%emt 00:00:02] [%clk 00:02:30]} Bd7
{[%emt 00:00:04] [%clk 00:02:53]} 17. g4 {[%emt 00:00:02] [%clk 00:02:31]} Rfe8
{[%emt 00:00:04] [%clk 00:02:51]} 18. Rhe1 {[%emt 00:00:07] [%clk 00:02:25]} Re7
{[%emt 00:00:05] [%clk 00:02:48]} 19. Rd2 {[%emt 00:00:01] [%clk 00:02:26]} Rae8
{[%emt 00:00:02] [%clk 00:02:48]} 20. Rde2 {[%clk 00:02:27]} Bc6 {[%emt
00:00:03] [%clk 00:02:47]} 21. c4 {[%emt 00:00:05] [%clk 00:02:24]} b6 {[%emt
00:00:18] [%clk 00:02:31]} 22. Kd2 {[%emt 00:00:02] [%clk 00:02:25]} Kg7 {[%emt
00:00:01] [%clk 00:02:32]} 23. Re3 {[%emt 00:00:04] [%clk 00:02:22]} h5 {[%emt
00:00:10] [%clk 00:02:24]} 24. Rg1 {[%emt 00:00:25] [%clk 00:01:59]} hxg4 {[%emt
00:00:51] [%clk 00:01:35]} 25. Rxg4+ {[%emt 00:00:14] [%clk 00:01:47]} Kf8
{[%emt 00:00:19] [%clk 00:01:17]} 26. Reg3 {[%emt 00:00:17] [%clk 00:01:33]} Re6
{[%emt 00:00:08] [%clk 00:01:11]} 27. Rg8+ {[%emt 00:00:04] [%clk 00:01:31]} Ke7
{[%clk 00:01:12]} 28. f5 {[%emt 00:00:08] [%clk 00:01:24]} Re5 {[%emt 00:00:03]
[%clk 00:01:13]} 29. Rxe8+ {[%emt 00:00:09] [%clk 00:01:17]} Kxe8 {[%clk
00:01:14]} 30. Rg8+ {[%emt 00:00:03] [%clk 00:01:16]} Ke7 {[%emt 00:00:04] [%clk
00:01:12]} 31. Ke3 {[%emt 00:00:02] [%clk 00:01:15]} d5 {[%emt 00:00:06] [%clk
00:01:08]} 32. cxd5 {[%emt 00:00:02] [%clk 00:01:15]} Bxd5 {[%emt 00:00:01]
[%clk 00:01:09]} 33. h4 {[%clk 00:01:16]} b5 {[%emt 00:00:28] [%clk 00:00:43]}
34. h5 {[%emt 00:00:02] [%clk 00:01:16]} Bc4 {[%clk 00:00:44]} 35. Bxc4 {[%emt
00:00:02] [%clk 00:01:16]} bxc4 {[%emt 00:00:01] [%clk 00:00:46]} 36. h6 {[%clk
00:01:16]} Rb5 {[%emt 00:00:20] [%clk 00:00:28]} 37. h7 {[%emt 00:00:02] [%clk
00:01:17]} 1-0

[Site "Europe Echecs"]

[Event "Championnat d'Europe de Blitz"]
[Date "2024.12.09"]
[White "Asllani, Muhamet"]
[Black "Plesec, Damjan"]
[WhiteElo "2112"]
[BlackElo "2206"]
[Round "6.49"]
[Result "1-0"]
[TimeControl "180+2"]

1. d4 {[%emt 00:00:01] [%clk 00:03:02]} d5 {[%emt 00:00:02] [%clk 00:03:03]} 2.
Nf3 {[%clk 00:03:03]} Nf6 {[%emt 00:00:02] [%clk 00:03:03]} 3. c4 {[%clk
00:03:04]} e6 {[%emt 00:00:02] [%clk 00:03:04]} 4. Nc3 {[%clk 00:03:05]} c6
{[%emt 00:00:04] [%clk 00:03:03]} 5. Bg5 {[%emt 00:00:01] [%clk 00:03:06]} Be7
{[%emt 00:00:03] [%clk 00:03:01]} 6. e3 {[%emt 00:00:01] [%clk 00:03:07]} Ne4
{[%emt 00:00:06] [%clk 00:02:58]} 7. Bf4 {[%emt 00:00:03] [%clk 00:03:05]} Qa5
{[%emt 00:00:09] [%clk 00:02:51]} 8. Qb3 {[%emt 00:00:01] [%clk 00:03:06]} Nxc3
{[%emt 00:00:17] [%clk 00:02:37]} 9. bxc3 {[%emt 00:00:02] [%clk 00:03:06]} Qb6
{[%emt 00:00:14] [%clk 00:02:23]} 10. Qc2 {[%emt 00:00:04] [%clk 00:03:05]} Nd7
{[%emt 00:00:08] [%clk 00:02:18]} 11. Be2 {[%emt 00:00:04] [%clk 00:03:02]} h6
{[%clk 00:02:19]} 12. O-O {[%emt 00:00:02] [%clk 00:03:02]} Qd8 {[%emt 00:00:03]
[%clk 00:02:19]} 13. Rfd1 {[%emt 00:00:06] [%clk 00:02:57]} O-O {[%emt 00:00:03]
[%clk 00:02:18]} 14. h3 {[%emt 00:00:03] [%clk 00:02:57]} Nf6 {[%emt 00:00:01]
[%clk 00:02:19]} 15. Ne5 {[%emt 00:00:05] [%clk 00:02:54]} Nd7 {[%emt 00:00:03]
[%clk 00:02:17]} 16. Nf3 {[%emt 00:00:03] [%clk 00:02:53]} Nf6 {[%clk 00:02:19]}
17. Rab1 {[%emt 00:00:01] [%clk 00:02:54]} b6 {[%emt 00:00:06] [%clk 00:02:15]}
18. cxd5 {[%emt 00:00:07] [%clk 00:02:49]} cxd5 {[%emt 00:00:03] [%clk
00:02:13]} 19. c4 {[%emt 00:00:04] [%clk 00:02:48]} dxc4 {[%emt 00:00:06] [%clk
00:02:09]} 20. Bxc4 {[%emt 00:00:08] [%clk 00:02:41]} Bb7 {[%emt 00:00:03] [%clk
00:02:08]} 21. Ne5 {[%emt 00:00:06] [%clk 00:02:38]} Nd7 {[%emt 00:00:04] [%clk
00:02:06]} 22. Bb5 {[%emt 00:00:26] [%clk 00:02:14]} Nxe5 {[%emt 00:00:05] [%clk
00:02:02]} 23. dxe5 {[%clk 00:02:14]} Qc8 {[%emt 00:00:09] [%clk 00:01:54]} 24.
Qe2 {[%emt 00:00:07] [%clk 00:02:12]} Bc5 {[%emt 00:00:17] [%clk 00:01:38]} 25.
Qg4 {[%emt 00:00:02] [%clk 00:02:11]} Kh8 {[%emt 00:00:09] [%clk 00:01:32]} 26.
Qh5 {[%emt 00:00:09] [%clk 00:02:04]} Be4 {[%emt 00:00:18] [%clk 00:01:17]} 27.
Rbc1 {[%emt 00:00:09] [%clk 00:01:56]} Bg6 {[%emt 00:00:14] [%clk 00:01:05]} 28.
Qh4 {[%emt 00:00:02] [%clk 00:01:56]} Rd8 {[%emt 00:00:09] [%clk 00:00:59]} 29.
Kh2 {[%emt 00:00:15] [%clk 00:01:42]} Qc7 {[%emt 00:00:05] [%clk 00:00:56]} 30.
Be2 {[%emt 00:00:11] [%clk 00:01:34]} Qe7 {[%emt 00:00:24] [%clk 00:00:34]} 31.
Qg3 {[%emt 00:00:03] [%clk 00:01:32]} Rxd1 {[%emt 00:00:04] [%clk 00:00:32]} 32.
Rxd1 {[%clk 00:01:34]} Rd8 {[%emt 00:00:02] [%clk 00:00:33]} 33. Rc1 {[%emt
00:00:14] [%clk 00:01:22]} Rd2 {[%emt 00:00:01] [%clk 00:00:34]} 34. Bc4 {[%emt
00:00:02] [%clk 00:01:22]} Qd7 {[%emt 00:00:02] [%clk 00:00:32]} 35. Qf3 {[%emt
00:00:04] [%clk 00:01:21]} Kh7 {[%emt 00:00:02] [%clk 00:00:33]} 36. h4 {[%emt
00:00:03] [%clk 00:01:20]} h5 {[%emt 00:00:04] [%clk 00:00:30]} 37. Bb3 {[%emt
00:00:17]} Qd3 {[%emt 00:00:03] [%clk 00:00:27]} 38. Bc4 {[%emt 00:00:10] [%clk
00:01:01]} Qd7 {[%emt 00:00:01] [%clk 00:00:27]} 39. Qg3 {[%emt 00:00:11] [%clk
00:00:52]} Qb7 {[%emt 00:00:04] [%clk 00:00:23]} 40. f3 {[%emt 00:00:10] [%clk
00:00:45]} Qd7 {[%clk 00:00:25]} 41. e4 {[%emt 00:00:03] [%clk 00:00:43]} Rd1
{[%emt 00:00:03] [%clk 00:00:24]} 42. Bb5 {[%emt 00:00:16] [%clk 00:00:30]} Qd4
{[%emt 00:00:03] [%clk 00:00:22]} 43. Be3 {[%emt 00:00:12] [%clk 00:00:20]} Qd8
{[%emt 00:00:08] [%clk 00:00:17]} 44. Rc3 {[%emt 00:00:08] [%clk 00:00:14]} Bxe3
{[%emt 00:00:01] [%clk 00:00:17]} 45. Rxe3 {[%emt 00:00:01] [%clk 00:00:15]} Qd4
{[%clk 00:00:18]} 46. Qf2 {[%emt 00:00:05] [%clk 00:00:13]} Rd2 {[%emt 00:00:01]
[%clk 00:00:19]} 47. Qe1 {[%emt 00:00:03] [%clk 00:00:12]} Rxa2 {[%emt 00:00:02]
[%clk 00:00:18]} 48. Rc3 {[%emt 00:00:01] [%clk 00:00:13]} Qb4 {[%emt 00:00:02]
[%clk 00:00:18]} 49. Be8 {[%emt 00:00:05] [%clk 00:00:11]} Rc2 {[%emt 00:00:02]
[%clk 00:00:18]} 50. Re3 {[%emt 00:00:02] [%clk 00:00:12]} Qxe1 {[%emt 00:00:01]
[%clk 00:00:19]} 51. Rxe1 {[%clk 00:00:13]} Rc7 {[%emt 00:00:01] [%clk
00:00:20]} 52. Rd1 {[%emt 00:00:02] [%clk 00:00:14]} Kg8 {[%emt 00:00:02] [%clk
00:00:20]} 53. Rd8 {[%emt 00:00:01] [%clk 00:00:15]} Kh7 {[%clk 00:00:20]} 54.
Kg3 {[%clk 00:00:16]} Re7 {[%emt 00:00:02] [%clk 00:00:21]} 55. Kf4 {[%clk
00:00:17]} Rc7 {[%emt 00:00:02] [%clk 00:00:21]} 56. g4 {[%emt 00:00:01] [%clk
00:00:18]} hxg4 {[%emt 00:00:02] [%clk 00:00:20]} 57. fxg4 {[%clk 00:00:20]} Rc4
{[%clk 00:00:21]} 1-0

[Site "Europe Echecs"]

[Event "Championnat d'Europe de Blitz"]
[Date "2024.12.09"]
[White "Perunovic, Miodrag"]
[Black "Mihov, Filip"]
[WhiteElo "2357"]
[BlackElo "2245"]
[Round "6.50"]
[Result "1-0"]
[TimeControl "180+2"]

1. e4 {[%emt 00:00:03] [%clk 00:03:00]} e6 {[%emt 00:00:03] [%clk 00:03:02]} 2.
d4 {[%emt 00:00:02] [%clk 00:03:00]} d5 {[%emt 00:00:01] [%clk 00:03:03]} 3. Nc3
{[%emt 00:00:01] [%clk 00:03:01]} Bb4 {[%emt 00:00:04] [%clk 00:03:01]} 4. e5
{[%clk 00:03:02]} c5 {[%emt 00:00:01] [%clk 00:03:01]} 5. a3 {[%emt 00:00:01]
[%clk 00:03:03]} Bxc3+ {[%emt 00:00:02] [%clk 00:03:02]} 6. bxc3 {[%emt
00:00:01] [%clk 00:03:04]} Qa5 {[%emt 00:00:01] [%clk 00:03:03]} 7. Bd2 {[%clk
00:03:04]} Qa4 {[%emt 00:00:01] [%clk 00:03:05]} 8. Qg4 {[%emt 00:00:14] [%clk
00:02:51]} Kf8 {[%emt 00:00:01] [%clk 00:03:06]} 9. h4 {[%emt 00:00:02] [%clk
00:02:52]} b6 {[%emt 00:00:04] [%clk 00:03:04]} 10. Rh3 {[%emt 00:00:08] [%clk
00:02:45]} Ne7 {[%emt 00:00:24] [%clk 00:02:42]} 11. h5 {[%emt 00:00:09] [%clk
00:02:38]} h6 {[%emt 00:00:02] [%clk 00:02:43]} 12. Rf3 {[%emt 00:00:01] [%clk
00:02:38]} Nbc6 {[%emt 00:00:03] [%clk 00:02:42]} 13. Qf4 {[%emt 00:00:15] [%clk
00:02:25]} Nd8 {[%emt 00:00:02] [%clk 00:02:43]} 14. dxc5 {[%emt 00:00:29] [%clk
00:01:58]} Qxf4 {[%emt 00:00:02] [%clk 00:02:43]} 15. Rxf4 {[%emt 00:00:02]
[%clk 00:01:57]} bxc5 {[%clk 00:02:44]} 16. Rb1 {[%emt 00:00:13] [%clk
00:01:47]} Nec6 {[%emt 00:00:22] [%clk 00:02:28]} 17. Nf3 {[%emt 00:00:15] [%clk
00:01:31]} c4 {[%emt 00:00:20] [%clk 00:02:10]} 18. a4 {[%emt 00:00:14] [%clk
00:01:18]} Ke7 {[%emt 00:00:10] [%clk 00:02:02]} 19. Bc1 {[%emt 00:00:02] [%clk
00:01:19]} f6 {[%emt 00:00:01] [%clk 00:02:03]} 20. Ba3+ {[%emt 00:00:01] [%clk
00:01:20]} Kf7 {[%emt 00:00:04] [%clk 00:02:01]} 21. Bd6 {[%emt 00:00:25] [%clk
00:00:57]} Nb7 {[%emt 00:00:15] [%clk 00:01:49]} 22. Bc7 {[%emt 00:00:14] [%clk
00:00:44]} Ke7 {[%emt 00:00:03] [%clk 00:01:49]} 23. Rg4 {[%emt 00:00:08] [%clk
00:00:37]} Kf7 {[%emt 00:00:15] [%clk 00:01:36]} 24. g3 {[%emt 00:00:10] [%clk
00:00:29]} Nc5 {[%emt 00:00:14] [%clk 00:01:25]} 25. Bg2 {[%emt 00:00:12] [%clk
00:00:18]} Nxa4 {[%emt 00:00:17] [%clk 00:01:10]} 26. Kd2 {[%emt 00:00:04] [%clk
00:00:15]} Nc5 {[%emt 00:00:02] [%clk 00:01:11]} 27. Nd4 {[%emt 00:00:10] [%clk
00:00:07]} Nxe5 {[%emt 00:00:09] [%clk 00:01:04]} 28. Bxe5 {[%emt 00:00:01]
[%clk 00:00:08]} fxe5 {[%emt 00:00:01] [%clk 00:01:05]} 29. Nc6 {[%clk
00:00:09]} Kf6 {[%emt 00:00:23] [%clk 00:00:44]} 30. Rg6+ {[%emt 00:00:01] [%clk
00:00:10]} Kf7 {[%clk 00:00:45]} 31. Nxe5+ {[%emt 00:00:02] [%clk 00:00:10]} Ke7
{[%clk 00:00:46]} 32. Rxg7+ {[%emt 00:00:02] [%clk 00:00:10]} Kd6 {[%emt
00:00:02] [%clk 00:00:47]} 33. Nf7+ {[%clk 00:00:11]} Ke7 {[%emt 00:00:03] [%clk
00:00:46]} 34. Nxh8+ {[%emt 00:00:01] [%clk 00:00:12]} Kf6 {[%clk 00:00:47]} 35.
Rg6+ {[%emt 00:00:02] [%clk 00:00:13]} 1-0

[Site "Europe Echecs"]

[Event "Championnat d'Europe de Blitz"]
[Date "2024.12.09"]
[White "Veljanoski, Andrej"]
[Black "Pezelj, Sinisa"]
[WhiteElo "2304"]
[BlackElo "2201"]
[Round "6.51"]
[Result "1-0"]
[TimeControl "180+2"]

1. e4 {[%emt 00:00:02] [%clk 00:03:02]} d5 {[%emt 00:00:01] [%clk 00:03:04]} 2.
exd5 {[%emt 00:00:01] [%clk 00:03:03]} Qxd5 {[%emt 00:00:01] [%clk 00:03:05]} 3.
Nc3 {[%emt 00:00:01] [%clk 00:03:03]} Qa5 {[%emt 00:00:01] [%clk 00:03:06]} 4.
Bc4 {[%emt 00:00:08] [%clk 00:02:57]} Nf6 {[%emt 00:00:02] [%clk 00:03:06]} 5.
d3 {[%emt 00:00:01] [%clk 00:02:57]} c6 {[%emt 00:00:01] [%clk 00:03:07]} 6. Qe2
{[%emt 00:00:12] [%clk 00:02:47]} Bf5 {[%emt 00:00:11] [%clk 00:02:59]} 7. Nf3
{[%emt 00:00:05] [%clk 00:02:44]} e6 {[%emt 00:00:04] [%clk 00:02:57]} 8. Bd2
{[%emt 00:00:05] [%clk 00:02:41]} Qc7 {[%emt 00:00:06] [%clk 00:02:53]} 9. O-O-O
{[%emt 00:00:22] [%clk 00:02:20]} Nbd7 {[%emt 00:00:05] [%clk 00:02:51]} 10. Bb3
{[%emt 00:00:15] [%clk 00:02:07]} O-O-O {[%emt 00:00:04] [%clk 00:02:49]} 11.
Kb1 {[%emt 00:00:08] [%clk 00:02:02]} Bd6 {[%emt 00:00:06] [%clk 00:02:45]} 12.
h3 {[%emt 00:00:03] [%clk 00:02:00]} h5 {[%emt 00:00:20] [%clk 00:02:27]} 13.
Ne4 {[%emt 00:00:06] [%clk 00:01:57]} Bf4 {[%emt 00:00:12] [%clk 00:02:16]} 14.
Bc3 {[%emt 00:00:08] [%clk 00:01:51]} Rhg8 {[%emt 00:00:15] [%clk 00:02:04]} 15.
g3 {[%emt 00:00:02] [%clk 00:01:50]} Bd6 {[%emt 00:00:07] [%clk 00:01:59]} 16.
Nxd6+ {[%emt 00:00:19] [%clk 00:01:33]} Qxd6 {[%clk 00:02:00]} 17. Ne5 {[%emt
00:00:05] [%clk 00:01:29]} Qe7 {[%emt 00:00:35] [%clk 00:01:28]} 18. g4 {[%emt
00:00:20] [%clk 00:01:12]} Nxe5 {[%emt 00:00:50] [%clk 00:00:39]} 19. gxf5
{[%emt 00:00:01] [%clk 00:01:12]} Ned7 {[%emt 00:00:10] [%clk 00:00:32]} 20.
fxe6 {[%emt 00:00:01] [%clk 00:01:13]} fxe6 {[%emt 00:00:02] [%clk 00:00:32]}
21. Qxe6 {[%emt 00:00:05] [%clk 00:01:10]} Qc5 {[%emt 00:00:03] [%clk 00:00:31]}
22. d4 {[%emt 00:00:27] [%clk 00:00:45]} Qg5 {[%emt 00:00:21]} 23. Qe2 {[%clk
00:00:26]} Rge8 {[%emt 00:00:03] [%clk 00:00:31]} 24. Qf3 {[%emt 00:00:03] [%clk
00:00:25]} Ne4 {[%emt 00:00:09] [%clk 00:00:24]} 25. a4 {[%emt 00:00:05] [%clk
00:00:23]} Ndf6 {[%emt 00:00:05] [%clk 00:00:21]} 26. Rhg1 {[%emt 00:00:05]
[%clk 00:00:19]} Qh6 {[%clk 00:00:22]} 27. Ba5 {[%emt 00:00:05]} b6 {[%emt
00:00:01] [%clk 00:00:23]} 28. Bc3 {[%emt 00:00:03] [%clk 00:00:15]} Kb7 {[%emt
00:00:02] [%clk 00:00:23]} 29. a5 {[%emt 00:00:02] [%clk 00:00:16]} Nd5 {[%emt
00:00:04] [%clk 00:00:20]} 30. Bxd5 {[%emt 00:00:04] [%clk 00:00:14]} cxd5
{[%emt 00:00:02] [%clk 00:00:21]} 31. axb6 {[%clk 00:00:15]} axb6 {[%clk
00:00:22]} 32. Qe3 {[%emt 00:00:05] [%clk 00:00:11]} Qxe3 {[%emt 00:00:07] [%clk
00:00:17]} 33. fxe3 {[%clk 00:00:12]} Nxc3+ {[%emt 00:00:01] [%clk 00:00:18]}
34. bxc3 {[%clk 00:00:13]} Rxe3 {[%clk 00:00:19]} 35. Rxg7+ {[%emt 00:00:01]
[%clk 00:00:14]} Ka6 {[%clk 00:00:21]} 36. Rd3 {[%emt 00:00:07] [%clk 00:00:11]}
Re1+ {[%emt 00:00:03] [%clk 00:00:20]} 37. Kb2 {[%emt 00:00:01] [%clk 00:00:12]}
Kb5 {[%emt 00:00:03] [%clk 00:00:18]} 38. Rg5 {[%emt 00:00:02] [%clk 00:00:12]}
Kc4 {[%emt 00:00:01] [%clk 00:00:19]} 39. Rg6 {[%emt 00:00:06] [%clk 00:00:08]}
Ra8 {[%emt 00:00:02] [%clk 00:00:19]} 40. Rxb6 {[%emt 00:00:02] [%clk 00:00:08]}
Ra4 {[%emt 00:00:06] [%clk 00:00:15]} 41. Rb4+ {[%emt 00:00:05] [%clk 00:00:05]}
Rxb4+ {[%emt 00:00:01] [%clk 00:00:16]} 42. cxb4 {[%emt 00:00:01] [%clk
00:00:06]} Kxb4 {[%emt 00:00:02]} 43. Rc3 {[%emt 00:00:02] [%clk 00:00:05]} Re4
{[%emt 00:00:03] [%clk 00:00:17]} 44. Rc8 {[%emt 00:00:02] [%clk 00:00:04]} 1-0

[Site "Europe Echecs"]

[Event "Championnat d'Europe de Blitz"]
[Date "2024.12.09"]
[White "Aizenberg, Benny"]
[Black "Kues, Hendrik"]
[WhiteElo "2425"]
[BlackElo "2149"]
[Round "6.52"]
[Result "1-0"]
[TimeControl "180+2"]

1. e4 {[%clk 00:03:03]} c5 {[%clk 00:03:04]} 2. Nf3 {[%emt 00:00:01] [%clk
00:03:04]} g6 {[%emt 00:00:01] [%clk 00:03:05]} 3. d4 {[%emt 00:00:01] [%clk
00:03:04]} cxd4 {[%emt 00:00:01] [%clk 00:03:07]} 4. Nxd4 {[%clk 00:03:06]} Bg7
{[%emt 00:00:01] [%clk 00:03:08]} 5. c4 {[%clk 00:03:07]} Nc6 {[%clk 00:03:09]}
6. Be3 {[%emt 00:00:01] [%clk 00:03:08]} Nf6 {[%emt 00:00:01] [%clk 00:03:10]}
7. Nc3 {[%emt 00:00:01] [%clk 00:03:09]} O-O {[%emt 00:00:01] [%clk 00:03:11]}
8. Be2 {[%emt 00:00:01] [%clk 00:03:09]} d6 {[%clk 00:03:12]} 9. O-O {[%emt
00:00:03] [%clk 00:03:08]} Bd7 {[%clk 00:03:13]} 10. Rc1 {[%emt 00:00:03] [%clk
00:03:08]} Nxd4 {[%emt 00:00:02] [%clk 00:03:14]} 11. Bxd4 {[%clk 00:03:08]} Bc6
{[%clk 00:03:15]} 12. f3 {[%emt 00:00:04] [%clk 00:03:07]} a5 {[%emt 00:00:01]
[%clk 00:03:16]} 13. b3 {[%emt 00:00:02] [%clk 00:03:07]} Nd7 {[%emt 00:00:01]
[%clk 00:03:17]} 14. Be3 {[%clk 00:03:08]} Nc5 {[%emt 00:00:01] [%clk 00:03:18]}
15. Qd2 {[%emt 00:00:05] [%clk 00:03:05]} Qb6 {[%clk 00:03:19]} 16. Nd5 {[%emt
00:00:16] [%clk 00:02:51]} Bxd5 {[%emt 00:00:03] [%clk 00:03:18]} 17. cxd5
{[%emt 00:00:02] [%clk 00:02:52]} Qb4 {[%emt 00:00:30] [%clk 00:02:49]} 18. Rc4
{[%emt 00:00:04] [%clk 00:02:50]} Qxd2 {[%emt 00:00:05] [%clk 00:02:46]} 19.
Bxd2 {[%clk 00:02:50]} b5 {[%emt 00:00:15] [%clk 00:02:34]} 20. Rc2 {[%emt
00:00:06] [%clk 00:02:46]} Bd4+ {[%emt 00:00:17] [%clk 00:02:19]} 21. Kh1 {[%emt
00:00:01] [%clk 00:02:46]} b4 {[%emt 00:00:02] [%clk 00:02:20]} 22. Rc4 {[%emt
00:00:03] [%clk 00:02:45]} Bf6 {[%emt 00:00:01] [%clk 00:02:21]} 23. f4 {[%emt
00:00:10] [%clk 00:02:38]} a4 {[%emt 00:00:11] [%clk 00:02:12]} 24. bxa4 {[%emt
00:01:17] [%clk 00:01:22]} Rxa4 {[%clk 00:02:13]} 25. Bxb4 {[%emt 00:00:04]
[%clk 00:01:20]} Rxa2 {[%emt 00:00:03] [%clk 00:02:12]} 26. Bf3 {[%clk
00:01:21]} Nd3 {[%emt 00:00:11]} 27. Bd1 {[%emt 00:00:42] [%clk 00:00:40]} Ra1
{[%emt 00:00:14] [%clk 00:01:53]} 28. Be2 {[%emt 00:00:16] [%clk 00:00:25]}
Rxf1+ {[%emt 00:00:16] [%clk 00:01:39]} 29. Bxf1 {[%emt 00:00:01] [%clk
00:00:26]} Nxf4 {[%clk 00:01:40]} 30. Bd2 {[%emt 00:00:07] [%clk 00:00:21]} Nh5
{[%emt 00:00:02] [%clk 00:01:40]} 31. g4 {[%clk 00:00:22]} Ng7 {[%emt 00:00:13]
[%clk 00:01:29]} 32. Rc7 {[%emt 00:00:01] [%clk 00:00:23]} Ne8 {[%emt 00:00:16]
[%clk 00:01:15]} 33. Rb7 {[%emt 00:00:04] [%clk 00:00:21]} Be5 {[%emt 00:00:02]
[%clk 00:01:15]} 34. g5 {[%emt 00:00:06] [%clk 00:00:17]} Ng7 {[%emt 00:00:18]
[%clk 00:00:59]} 35. Rxe7 {[%emt 00:00:04] [%clk 00:00:15]} Nh5 {[%emt 00:00:01]
[%clk 00:01:00]} 36. Bb5 {[%emt 00:00:03] [%clk 00:00:14]} Nf4 {[%emt 00:00:04]
[%clk 00:00:58]} 37. Be8 {[%emt 00:00:06] [%clk 00:00:10]} Ne2 {[%emt 00:00:11]
[%clk 00:00:49]} 38. Kg2 {[%emt 00:00:03] [%clk 00:00:09]} Nf4+ {[%emt 00:00:03]
[%clk 00:00:48]} 39. Kf3 {[%emt 00:00:02] [%clk 00:00:09]} Nh5 {[%emt 00:00:06]
[%clk 00:00:44]} 40. h3 {[%emt 00:00:02] [%clk 00:00:09]} Kg7 {[%emt 00:00:03]
[%clk 00:00:43]} 41. Bb4 {[%emt 00:00:05] [%clk 00:00:06]} h6 {[%emt 00:00:07]
[%clk 00:00:38]} 42. gxh6+ {[%emt 00:00:01] [%clk 00:00:07]} Kxh6 {[%emt
00:00:01] [%clk 00:00:39]} 43. Rxe5 {[%emt 00:00:02] [%clk 00:00:07]} Rg8 {[%emt
00:00:07] [%clk 00:00:33]} 44. Bxd6 {[%emt 00:00:02] [%clk 00:00:07]} f6 {[%emt
00:00:04] [%clk 00:00:32]} 45. Re7 {[%emt 00:00:01] [%clk 00:00:08]} Ng7 {[%emt
00:00:02] [%clk 00:00:32]} 46. Bf4+ {[%emt 00:00:02] [%clk 00:00:08]} g5 {[%emt
00:00:01] [%clk 00:00:33]} 47. Bf7 {[%emt 00:00:02] [%clk 00:00:08]} Ra8 {[%emt
00:00:05] [%clk 00:00:30]} 48. Be3 {[%clk 00:00:09]} Ra1 {[%emt 00:00:03] [%clk
00:00:29]} 49. d6 {[%emt 00:00:02] [%clk 00:00:09]} Rb1 {[%emt 00:00:08] [%clk
00:00:23]} 50. d7 {[%emt 00:00:02] [%clk 00:00:09]} 1-0

[Site "Europe Echecs"]